[Event "47th GRE-chT 2019"]
[Site "Patra"]
[Date "2019.07.04"]
[Round "4.32"]
[White "Galopoulos, Nikolaos"]
[Black "Theodorou, Nikolas"]
[Result "1/2-1/2"]
[ECO "A49"]
[WhiteElo "2361"]
[BlackElo "2543"]
[Annotator "ChessBase"]
[PlyCount "120"]
[EventDate "2019.07.02"]
[EventCountry "GRE"]
[SourceTitle "playchess.com"]
[Source "ChessBase"]
[SourceQuality "1"]
[TimeControl "5400+30"]

1. d4 {[%emt 0:00:00]} Nf6 {[%emt 0:00:00]} 2. Nf3 {[%emt 0:00:00]} g6 {[%emt 0:00:00]} 3. g3 {[%emt 0:00:00]} Bg7 {[%emt 0:00:00]} 4. Bg2 {[%emt 0:00:01]} O-O {[%emt 0:00:00]} 5. O-O {[%emt 0:01:36]} d6 {[%emt 0:00:00]} 6. b3 {[%emt 0:01:35]} b5 {[%emt 0:03:03]} 7. Nfd2 {[%emt 0:00:22]} c6 {[%emt 0:00:05]} 8. c4 {[%emt 0:07:44]} a6 {[%emt 0:00:42]} 9. Bb2 {[%emt 0:02:08]} Bb7 {[%emt 0:03:21]} 10. Nc3 {[%emt 0:05:45]} Qb6 {[%emt 0:05:16]} 11. Qc2 {[%emt 0:00:41]} Nbd7 {[%emt 0:00:25]} 12. Rfd1 {[%emt 0:08:13]} Rfe8 {[%emt 0:15:27]} 13. a4 {[%emt 0:05:36]} b4 {[%emt 0:00:29]} 14. Nce4 {[%emt 0:12:44]} c5 {[%emt 0:04:39]} 15. Nxf6+ {[%emt 0:09:46]} Nxf6 {[%emt 0:00:41]} 16. Bxb7 {[%emt 0:00:04]} Qxb7 {[%emt 0:01:51]} 17. d5 {[%emt 0:07:31]} e5 {[%emt 0:01:05]} 18. e4 {[%emt 0:00:58]} Qd7 {[%emt 0:01:59]} 19. Nf1 {[%emt 0:01:41]} Ng4 {[%emt 0:01:04]} 20. f3 {[%emt 0:00:26]} Nh6 {[%emt 0:01:33]} 21. Bc1 {[%emt 0:00:34]} f5 {[%emt 0:00:06]} 22. Bxh6 {[%emt 0:00:05]} Bxh6 {[%emt 0:00:05]} 23. Qe2 {[%emt 0:02:02]} Rf8 {[%emt 0:00:32]} 24. Nd2 {[%emt 0:00:56]} Rf7 {[%emt 0:00:12]} 25. Rf1 {[%emt 0:00:36]} Raf8 {[%emt 0:04:03]} 26. Kg2 {[%emt 0:09:24]} Rf6 {[%emt 0:00:39]} 27. Rae1 {[%emt 0:00:57]} Qg7 {[%emt 0:01:44]} 28. Nb1 {[%emt 0:01:18]} Qf7 {[%emt 0:00:24]} 29. Rd1 {[%emt 0:01:59]} Re8 {[%emt 0:00:09]} 30. Rde1 {[%emt 0:01:07]} Rf8 {[%emt 0:00:02]} 31. Rd1 {[%emt 0:00:11]} Kh8 {[%emt 0:00:21]} 32. Rde1 {[%emt 0:01:06]} Qg7 {[%emt 0:00:47]} 33. Nd2 {[%emt 0:03:19]} R6f7 {[%emt 0:00:53]} 34. Nb1 {[%emt 0:01:00]} Bg5 {[%emt 0:00:22]} 35. Nd2 {[%emt 0:03:55]} h5 {[%emt 0:26:46]} 36. Rd1 {[%emt 0:02:22]} Bh6 {[%emt 0:05:02]} 37. Rde1 {[%emt 0:03:52]} Kg8 {[%emt 0:07:01]} 38. Qd3 {[%emt 0:02:45]} Bxd2 {[%emt 0:00:22]} 39. Qxd2 {[%emt 0:00:03]} f4 {[%emt 0:00:00]} 40. h3 {[%emt 0:00:00]} fxg3 {[%emt 0:00:00]} 41. Qg5 {[%emt 0:00:00]} Rf4 {[%emt 0:00:00]} 42. Kxg3 {[%emt 0:00:00]} Kh7 {[%emt 0:00:00]} 43. Rf2 {[%emt 0:00:00]} Qh6 {[%emt 0:00:00]} 44. h4 {[%emt 0:00:00]} Qg7 {[%emt 0:00:00]} 45. Rg1 {[%emt 0:00:00]} Qf7 {[%emt 0:00:00]} 46. Rgf1 {[%emt 0:00:00]} Qf6 {[%emt 0:00:00]} 47. Kh3 {[%emt 0:00:00]} Kg7 {[%emt 0:00:00]} 48. Kg3 {[%emt 0:00:00]} Rf7 {[%emt 0:00:00]} 49. Kh3 {[%emt 0:00:00]} Qe7 {[%emt 0:00:00]} 50. Kg3 {[%emt 0:00:00]} R7f6 {[%emt 0:00:00]} 51. Kh3 {[%emt 0:00:00]} Kh7 {[%emt 0:00:00]} 52. Kg3 {[%emt 0:00:00]} Qf7 {[%emt 0:00:00]} 53. Kg2 {[%emt 0:00:06]} Qf8 {[%emt 0:00:00]} 54. Kg3 {[%emt 0:02:36]} Rf7 {[%emt 0:00:00]} 55. Kg2 {[%emt 0:01:45]} Qe7 {[%emt 0:00:00]} 56. Kg3 {[%emt 0:00:34]} Kg7 {[%emt 0:00:00]} 57. Kh3 {[%emt 0:00:33]} Qf6 {[%emt 0:00:00]} 58. Kg3 {[%emt 0:00:37]} Rf8 {[%emt 0:00:00]} 59. Kh3 {[%emt 0:01:53]} Rh8 {[%emt 0:00:00]} 60. Kg3 {[%emt 0:04:19]} Rf8 {[%emt 0:00:00]} 1/2-1/2

[Event "47th GRE-chT 2019"]
[Site "Patra"]
[Date "2019.07.04"]
[Round "4.33"]
[White "Naoum, Spyridon"]
[Black "Lagopatis, Nikolaos"]
[Result "0-1"]
[ECO "A41"]
[WhiteElo "2299"]
[BlackElo "2115"]
[Annotator "ChessBase"]
[PlyCount "172"]
[EventDate "2019.07.02"]
[EventCountry "GRE"]
[SourceTitle "playchess.com"]
[Source "ChessBase"]
[SourceQuality "1"]
[TimeControl "5400+30"]

1. d4 {[%emt 0:04:52]} d6 {[%emt 0:00:37]} 2. c4 {[%emt 0:00:36]} e5 {[%emt 0:00:35]} 3. d5 {[%emt 0:01:54]} f5 {[%emt 0:00:26]} 4. e4 {[%emt 0:01:29]} fxe4 {[%emt 0:03:25]} 5. Nc3 {[%emt 0:00:27]} Nf6 {[%emt 0:00:27]} 6. Nge2 {[%emt 0:00:14]} Be7 {[%emt 0:04:53]} 7. Ng3 {[%emt 0:01:11]} O-O {[%emt 0:01:23]} 8. Be2 {[%emt 0:05:34]} Nbd7 {[%emt 0:07:14]} 9. Be3 {[%emt 0:09:47]} a5 {[%emt 0:15:11]} 10. O-O {[%emt 0:04:23]} b6 {[%emt 0:01:11]} 11. a3 {[%emt 0:10:07]} Nc5 {[%emt 0:02:17]} 12. b4 {[%emt 0:01:30]} axb4 {[%emt 0:01:05]} 13. axb4 {[%emt 0:00:02]} Rxa1 {[%emt 0:00:44]} 14. Qxa1 {[%emt 0:00:03]} Nd3 {[%emt 0:01:01]} 15. Bxd3 {[%emt 0:10:27]} exd3 {[%emt 0:03:14]} 16. Qd1 {[%emt 0:04:23]} Ng4 {[%emt 0:03:55]} 17. Qxd3 {[%emt 0:05:50]} Bg5 {[%emt 0:02:39]} 18. h3 {[%emt 0:09:31]} Bxe3 {[%emt 0:15:03]} 19. fxe3 {[%emt 0:00:19]} Rxf1+ {[%emt 0:01:41]} 20. Nxf1 {[%emt 0:00:40]} Nf6 {[%emt 0:03:52]} 21. Qc2 {[%emt 0:02:38]} Bd7 {[%emt 0:00:53]} 22. Qa2 {[%emt 0:02:19]} Bf5 {[%emt 0:07:05]} 23. Qa4 {[%emt 0:06:05]} h6 {[%emt 0:03:20]} 24. Qc6 {[%emt 0:02:52]} Bd7 {[%emt 0:04:18]} 25. Qb7 {[%emt 0:00:24]} Ne8 {[%emt 0:03:47]} 26. Ne4 {[%emt 0:04:30]} Bf5 {[%emt 0:02:28]} 27. Neg3 {[%emt 0:04:05]} Bg6 {[%emt 0:02:41]} 28. e4 {[%emt 0:02:44]} Qg5 {[%emt 0:01:01]} 29. Qc8 {[%emt 0:00:58]} Kf8 {[%emt 0:01:36]} 30. Nf5 {[%emt 0:00:55]} Bxf5 {[%emt 0:01:47]} 31. Qxf5+ {[%emt 0:01:22]} Qxf5 {[%emt 0:00:21]} 32. exf5 {[%emt 0:00:02]} Ke7 {[%emt 0:01:14]} 33. Kf2 {[%emt 0:00:26]} Kf6 {[%emt 0:00:18]} 34. Ne3 {[%emt 0:01:11]} e4 {[%emt 0:01:04]} 35. g4 {[%emt 0:01:01]} Ke5 {[%emt 0:00:09]} 36. Kg3 {[%emt 0:01:05]} Nf6 {[%emt 0:01:30]} 37. b5 {[%emt 0:00:25]} Kd4 {[%emt 0:01:38]} 38. Kf4 {[%emt 0:00:10]} Nd7 {[%emt 0:00:25]} 39. h4 {[%emt 0:00:56]} Ne5 {[%emt 0:00:42]} 40. Nc2+ {[%emt 0:00:00]} Kd3 {[%emt 0:00:00]} 41. Ne1+ {[%emt 0:00:00]} Kxc4 {[%emt 0:00:00]} 42. h5 {[%emt 0:00:00]} Kxd5 {[%emt 0:00:00]} 43. Nc2 {[%emt 0:00:00]} Nd3+ {[%emt 0:00:00]} 44. Ke3 {[%emt 0:00:00]} Ne5 {[%emt 0:09:17]} 45. Kf4 {[%emt 0:00:00]} Nf7 {[%emt 0:00:00]} 46. Ke3 {[%emt 0:00:00]} Ke5 {[%emt 0:00:00]} 47. Nd4 {[%emt 0:00:00]} d5 {[%emt 0:00:00]} 48. Ne6 {[%emt 0:00:00]} Nd6 {[%emt 0:00:00]} 49. Nxg7 {[%emt 0:00:38]} d4+ {[%emt 0:00:00]} 50. Kd2 {[%emt 0:01:31]} Nc4+ {[%emt 0:00:00]} 51. Ke1 {[%emt 0:00:24]} Kf6 {[%emt 0:00:00]} 52. Ne6 {[%emt 0:00:12]} Ne5 {[%emt 0:00:00]} 53. Nxc7 {[%emt 0:04:00]} Nxg4 {[%emt 0:00:00]} 54. Nd5+ {[%emt 0:00:00]} Kxf5 {[%emt 0:00:00]} 55. Nxb6 {[%emt 0:00:01]} Ne5 {[%emt 0:00:00]} 56. Nc8 {[%emt 0:00:52]} Ke6 {[%emt 0:00:00]} 57. b6 {[%emt 0:00:03]} Kd7 {[%emt 0:00:00]} 58. b7 {[%emt 0:00:06]} Nc6 {[%emt 0:00:00]} 59. Nb6+ {[%emt 0:00:17]} Kc7 {[%emt 0:00:00]} 60. Nd5+ {[%emt 0:00:01]} Kxb7 {[%emt 0:00:00]} 61. Nf6 {[%emt 0:00:04]} Ne5 {[%emt 0:00:25]} 62. Nxe4 {[%emt 0:00:25]} Kc6 {[%emt 0:00:06]} 63. Nf6 {[%emt 0:03:51]} Kc5 {[%emt 0:00:30]} 64. Ng8 {[%emt 0:00:18]} Ng4 {[%emt 0:00:32]} 65. Kd2 {[%emt 0:00:49]} Kc4 {[%emt 0:00:12]} 66. Ne7 {[%emt 0:00:09]} Nf6 {[%emt 0:01:00]} 67. Nf5 {[%emt 0:00:08]} Ne4+ {[%emt 0:00:33]} 68. Kd1 {[%emt 0:01:31]} d3 {[%emt 0:00:48]} 69. Ne3+ {[%emt 0:00:59]} Kd4 {[%emt 0:00:31]} 70. Ng2 {[%emt 0:00:23]} Kc3 {[%emt 0:01:27]} 71. Ne3 {[%emt 0:00:40]} Kd4 {[%emt 0:00:26]} 72. Nf5+ {[%emt 0:00:04]} Kc3 {[%emt 0:00:08]} 73. Ne3 {[%emt 0:00:04]} d2 {[%emt 0:00:25]} 74. Nd5+ {[%emt 0:00:15]} Kd4 {[%emt 0:00:22]} 75. Nf4 {[%emt 0:00:28]} Ke3 {[%emt 0:00:12]} 76. Nd5+ {[%emt 0:00:08]} Kf3 {[%emt 0:00:22]} 77. Ne7 {[%emt 0:00:18]} Kg4 {[%emt 0:00:18]} 78. Nd5 {[%emt 0:02:11]} Kxh5 {[%emt 0:00:11]} 79. Ke2 {[%emt 0:00:18]} Kg5 {[%emt 0:00:22]} 80. Ne3 {[%emt 0:00:03]} h5 {[%emt 0:00:23]} 81. Nd1 {[%emt 0:01:17]} Kf4 {[%emt 0:00:23]} 82. Kf1 {[%emt 0:00:15]} Kf3 {[%emt 0:00:27]} 83. Kg1 {[%emt 0:00:08]} Ke2 {[%emt 0:00:22]} 84. Nb2 {[%emt 0:00:03]} d1=Q+ {[%emt 0:00:31]} 85. Nxd1 {[%emt 0:00:04]} Kxd1 {[%emt 0:00:13]} 86. Kg2 {[%emt 0:00:04]} Ke2 {[%emt 0:00:08]} 0-1

[Event "47th GRE-chT 2019"]
[Site "Patra"]
[Date "2019.07.04"]
[Round "4.34"]
[White "Sotiropoulos, Anastasios-Theohar"]
[Black "Liodakis, Konstantinos-Spyros"]
[Result "0-1"]
[ECO "E60"]
[WhiteElo "1919"]
[BlackElo "2212"]
[Annotator "NA"]
[PlyCount "78"]
[EventDate "2019.07.02"]
[EventCountry "GRE"]
[SourceTitle "playchess.com"]
[Source "ChessBase"]
[SourceQuality "1"]
[TimeControl "5400+30"]

1. Nf3 {[%emt 0:00:00]} Nf6 {[%emt 0:00:00]} 2. g3 {[%emt 0:00:00]} g6 {[%emt 0:00:00]} 3. b3 {[%emt 0:00:00]} Bg7 {[%emt 0:00:00]} 4. Bb2 {[%emt 0:00:00]} O-O {[%emt 0:00:00]} 5. Bg2 {[%emt 0:00:11]} c5 {[%emt 0:00:00]} 6. c4 {[%emt 0:00:11]} Nc6 {[%emt 0:06:40]} 7. d4 {[%emt 0:01:40]} d6 {[%emt 0:01:59]} 8. O-O {[%emt 0:04:34]} Bf5 {[%emt 0:09:45]} 9. d5 {[%emt 0:04:41]} Na5 {[%emt 0:04:04]} 10. Nc3 {[%emt 0:01:44]} a6 {[%emt 0:08:55]} 11. Nd2 {[%emt 0:01:21]} Bd7 {[%emt 0:03:15]} 12. e4 {[%emt 0:01:42]} b5 {[%emt 0:08:48]} 13. h3 {[%emt 0:02:49]} bxc4 {[%emt 0:01:25]} 14. bxc4 {[%emt 0:00:43]} Rb8 {[%emt 0:03:52]} 15. Rb1 {[%emt 0:06:26]} Rb4 {[%emt 0:09:19]} 16. Qe2 {[%emt 0:05:42]} Qc7 {[%emt 0:02:48]} 17. Ba1 {[%emt 0:00:29]} Rfb8 {[%emt 0:05:11]} 18. a3 {[%emt 0:00:49]} Rxb1 {[%emt 0:00:05]} 19. Rxb1 {[%emt 0:02:27]} Nh5 {[%emt 0:03:26]} 20. Qd1 {[%emt 0:21:18]} Rxb1 {[%emt 0:00:33]} 21. Qxb1 {[%emt 0:00:06]} Qb7 {[%emt 0:05:41]} 22. Qxb7 {[%emt 0:00:01]} Nxb7 {[%emt 0:05:34]} 23. Bf1 {[%emt 0:01:36]} Na5 {[%emt 0:01:56]} 24. Kg2 {[%emt 0:05:19]} Bd4 {[%emt 0:01:26]} 25. Bb2 {[%emt 0:01:28]} e5 {[%emt 0:01:57]} 26. Bd3 {[%emt 0:02:35]} f5 {[%emt 0:09:35]} 27. exf5 {[%emt 0:00:08]} gxf5 {[%emt 0:01:18]} 28. Bc2 {[%emt 0:03:34]} Nf6 {[%emt 0:02:14]} 29. Ba4 {[%emt 0:08:07]} e4 {[%emt 0:02:52]} 30. Bc2 {[%emt 0:01:10]} h5 {[%emt 0:00:37]} 31. Nd1 {[%emt 0:01:25]} h4 {[%emt 0:00:42]} 32. Bc3 {[%emt 0:01:49]} Bxc3 {[%emt 0:00:02]} 33. Nxc3 {[%emt 0:00:07]} hxg3 {[%emt 0:01:04]} 34. Kxg3 {[%emt 0:00:21]} Nh5+ {[%emt 0:01:12]} 35. Kh2 {[%emt 0:00:22]} Nf4 {[%emt 0:00:31]} 36. Kg3 {[%emt 0:00:07]} Ng6 {[%emt 0:00:35]} 37. Nd1 {[%emt 0:01:12]} Kg7 {[%emt 0:00:35]} 38. Kg2 {[%emt 0:01:25]} Kf6 39. f3 {[%emt 0:00:30]} Ke5 {[%emt 0:00:12]} 0-1

[Event "47th GRE-chT 2019"]
[Site "Patra"]
[Date "2019.07.04"]
[Round "4.35"]
[White "Antova, Gabriela"]
[Black "Kantane, Anna"]
[Result "1/2-1/2"]
[ECO "D76"]
[WhiteElo "2257"]
[BlackElo "2288"]
[Annotator "NA"]
[PlyCount "62"]
[EventDate "2019.07.02"]
[EventCountry "GRE"]
[SourceTitle "playchess.com"]
[Source "ChessBase"]
[SourceQuality "1"]
[TimeControl "5400+30"]

1. d4 {[%emt 0:00:00]} Nf6 {[%emt 0:00:00]} 2. c4 {[%emt 0:00:00]} g6 {[%emt 0:00:03]} 3. Nf3 {[%emt 0:00:00]} Bg7 {[%emt 0:00:11]} 4. g3 {[%emt 0:00:22]} O-O {[%emt 0:02:08]} 5. Bg2 {[%emt 0:00:06]} d5 {[%emt 0:00:05]} 6. cxd5 {[%emt 0:00:10]} Nxd5 {[%emt 0:00:07]} 7. O-O {[%emt 0:00:08]} Nb6 {[%emt 0:00:05]} 8. Nc3 {[%emt 0:00:11]} Nc6 {[%emt 0:00:10]} 9. d5 {[%emt 0:00:18]} Na5 {[%emt 0:00:08]} 10. e4 {[%emt 0:00:14]} c6 {[%emt 0:00:14]} 11. Bf4 {[%emt 0:00:26]} Nac4 {[%emt 0:00:14]} 12. Qb3 {[%emt 0:20:55]} cxd5 {[%emt 0:10:14]} 13. Nxd5 {[%emt 0:01:02]} Nxd5 {[%emt 0:03:01]} 14. exd5 {[%emt 0:00:16]} Nxb2 {[%emt 0:01:22]} 15. Be5 {[%emt 0:00:59]} Qb6 {[%emt 0:09:34]} 16. Bxg7 {[%emt 0:01:18]} Qxb3 {[%emt 0:10:58]} 17. axb3 {[%emt 0:00:10]} Kxg7 {[%emt 0:00:05]} 18. Rfe1 {[%emt 0:00:30]} Nd3 {[%emt 0:18:36]} 19. Rxe7 {[%emt 0:00:27]} Rd8 {[%emt 0:01:43]} 20. Rd1 {[%emt 0:36:25]} Rxd5 {[%emt 0:09:53]} 21. Re8 {[%emt 0:00:07]} Nb4 {[%emt 0:01:37]} 22. Rxd5 {[%emt 0:00:18]} Nxd5 {[%emt 0:00:16]} 23. Nd4 {[%emt 0:00:02]} Nc7 {[%emt 0:07:30]} 24. Re7 {[%emt 0:01:40]} Ne6 {[%emt 0:01:34]} 25. Nxe6+ {[%emt 0:11:36]} Bxe6 {[%emt 0:00:30]} 26. Rxb7 {[%emt 0:00:55]} Rc8 {[%emt 0:02:42]} 27. h4 {[%emt 0:01:50]} a5 {[%emt 0:01:23]} 28. Rb5 {[%emt 0:01:54]} Rc3 {[%emt 0:00:47]} 29. Rxa5 {[%emt 0:00:00]} Rxb3 {[%emt 0:00:08]} 30. Bd5 {[%emt 0:01:01]} Bxd5 {[%emt 0:00:24]} 31. Rxd5 {[%emt 0:00:02]} h5 {[%emt 0:00:19]} 1/2-1/2

[Event "47th GRE-chT 2019"]
[Site "Patra"]
[Date "2019.07.04"]
[Round "4.36"]
[White "Mastrakouli, Evagelia"]
[Black "Vozinaki, Anthi - Maria"]
[Result "0-1"]
[ECO "B13"]
[WhiteElo "1788"]
[BlackElo "2054"]
[Annotator "NA"]
[PlyCount "62"]
[EventDate "2019.07.02"]
[EventCountry "GRE"]
[SourceTitle "playchess.com"]
[Source "ChessBase"]
[SourceQuality "1"]
[TimeControl "5400+30"]

1. d4 {[%emt 0:00:00]} Nf6 {[%emt 0:00:00]} 2. c4 {[%emt 0:00:36]} c5 {[%emt 0:01:31]} 3. e3 {[%emt 0:04:47]} cxd4 {[%emt 0:01:17]} 4. exd4 {[%emt 0:01:49]} d5 {[%emt 0:01:55]} 5. c5 {[%emt 0:05:33]} Nc6 {[%emt 0:05:57]} 6. Nf3 {[%emt 0:05:24]} Bg4 {[%emt 0:00:54]} 7. Be2 {[%emt 0:02:25]} e6 {[%emt 0:03:41]} 8. O-O {[%emt 0:02:51]} Be7 {[%emt 0:11:52]} 9. h3 {[%emt 0:06:10]} Bxf3 {[%emt 0:00:06]} 10. Bxf3 {[%emt 0:00:50]} O-O {[%emt 0:03:37]} 11. Bf4 {[%emt 0:08:09]} b6 {[%emt 0:06:41]} 12. Qa4 {[%emt 0:02:54]} Rc8 {[%emt 0:20:58]} 13. Be2 {[%emt 0:15:05]} bxc5 {[%emt 0:01:28]} 14. dxc5 {[%emt 0:04:42]} e5 {[%emt 0:07:42]} 15. Ba6 {[%emt 0:04:09]} exf4 {[%emt 0:02:04]} 16. Bxc8 {[%emt 0:00:22]} Qxc8 {[%emt 0:03:38]} 17. Nd2 {[%emt 0:05:37]} Qd7 {[%emt 0:04:09]} 18. b4 {[%emt 0:08:36]} Ne4 {[%emt 0:06:16]} 19. Nf3 {[%emt 0:02:51]} Nc3 {[%emt 0:04:13]} 20. Qb3 {[%emt 0:01:01]} Bf6 {[%emt 0:01:06]} 21. Kh1 {[%emt 0:01:24]} Rb8 {[%emt 0:04:35]} 22. Rac1 {[%emt 0:01:17]} Rxb4 {[%emt 0:01:28]} 23. Rxc3 {[%emt 0:00:24]} Rxb3 {[%emt 0:00:03]} 24. Rxb3 {[%emt 0:01:58]} g5 {[%emt 0:01:56]} 25. Rfb1 {[%emt 0:01:33]} h5 {[%emt 0:01:36]} 26. Rb7 {[%emt 0:00:31]} Qf5 {[%emt 0:00:46]} 27. R1b3 {[%emt 0:01:03]} g4 {[%emt 0:00:48]} 28. hxg4 {[%emt 0:00:11]} hxg4 {[%emt 0:00:43]} 29. Ne1 {[%emt 0:02:31]} Nd4 {[%emt 0:01:29]} 30. Ra3 {[%emt 0:01:54]} Ne2 {[%emt 0:00:43]} 31. g3 {[%emt 0:00:11]} Qh5+ {[%emt 0:00:42]} 0-1

[Event "47th GRE-chT 2019"]
[Site "Patra"]
[Date "2019.07.04"]
[Round "4.37"]
[White "Karavitaki, Evaggelia"]
[Black "Giannoulaki, Ermofili"]
[Result "1-0"]
[ECO "B01"]
[WhiteElo "1681"]
[BlackElo "1269"]
[Annotator "NA"]
[PlyCount "65"]
[EventDate "2019.07.02"]
[EventCountry "GRE"]
[SourceTitle "playchess.com"]
[Source "ChessBase"]
[SourceQuality "1"]
[TimeControl "5400+30"]

1. e4 {[%emt 0:00:00]} d5 {[%emt 0:00:00]} 2. exd5 {[%emt 0:00:00]} Qxd5 {[%emt 0:00:00]} 3. Nf3 {[%emt 0:00:14]} Bg4 {[%emt 0:00:00]} 4. Be2 {[%emt 0:00:17]} Nc6 {[%emt 0:00:24]} 5. O-O {[%emt 0:00:40]} O-O-O {[%emt 0:00:14]} 6. h3 {[%emt 0:01:06]} Bf5 {[%emt 0:01:12]} 7. Nc3 {[%emt 0:17:44]} Qd6 {[%emt 0:05:14]} 8. d3 {[%emt 0:05:39]} h6 {[%emt 0:04:15]} 9. a3 {[%emt 0:13:02]} g5 {[%emt 0:06:39]} 10. b4 {[%emt 0:05:29]} Nf6 {[%emt 0:17:13]} 11. b5 {[%emt 0:21:08]} Nd4 {[%emt 0:05:08]} 12. Nxd4 {[%emt 0:14:08]} Qxd4 {[%emt 0:00:14]} 13. Bd2 {[%emt 0:00:26]} Qh4 {[%emt 0:12:44]} 14. f4 {[%emt 0:07:21]} g4 {[%emt 0:07:05]} 15. hxg4 {[%emt 0:02:34]} Bxg4 {[%emt 0:09:36]} 16. Qe1 {[%emt 0:03:20]} Qh5 {[%emt 0:01:33]} 17. Bxg4+ {[%emt 0:04:29]} Nxg4 {[%emt 0:00:22]} 18. Qg3 {[%emt 0:00:31]} e6 {[%emt 0:01:26]} 19. Ne2 {[%emt 0:00:38]} Bc5+ {[%emt 0:06:24]} 20. d4 {[%emt 0:00:24]} Bxd4+ {[%emt 0:01:11]} 21. Nxd4 {[%emt 0:00:15]} Rhg8 {[%emt 0:02:08]} 22. Bc3 {[%emt 0:00:57]} c5 {[%emt 0:03:28]} 23. bxc6 {[%emt 0:00:31]} bxc6 {[%emt 0:00:20]} 24. Rab1 {[%emt 0:00:30]} Qc5 {[%emt 0:00:55]} 25. Kh1 {[%emt 0:00:35]} Ne5 {[%emt 0:02:11]} 26. Qh3 {[%emt 0:00:29]} Nc4 {[%emt 0:01:28]} 27. Nb3 {[%emt 0:00:27]} Qe7 {[%emt 0:01:44]} 28. Bd4 {[%emt 0:00:31]} Rg6 {[%emt 0:01:09]} 29. f5 {[%emt 0:00:32]} Rg5 {[%emt 0:01:05]} 30. fxe6 {[%emt 0:00:22]} f5 {[%emt 0:01:44]} 31. Rf3 {[%emt 0:00:33]} f4 32. Rxf4 {[%emt 0:00:31]} Qxe6 {[%emt 0:01:05]} 33. Rf5 {[%emt 0:00:26]} 1-0

[Event "47th GRE-chT 2019"]
[Site "Patra"]
[Date "2019.07.04"]
[Round "4.38"]
[White "Giannoulakis, Lampros"]
[Black "Papadopoulos, Argirios"]
[Result "1-0"]
[ECO "E43"]
[WhiteElo "2305"]
[BlackElo "2222"]
[Annotator "NA"]
[PlyCount "107"]
[EventDate "2019.07.02"]
[EventCountry "GRE"]
[SourceTitle "playchess.com"]
[Source "ChessBase"]
[SourceQuality "1"]
[TimeControl "5400+30"]

1. d4 {[%emt 0:00:09]} Nf6 {[%emt 0:00:00]} 2. c4 {[%emt 0:00:04]} e6 {[%emt 0:00:00]} 3. Nc3 {[%emt 0:00:11]} Bb4 {[%emt 0:00:29]} 4. e3 {[%emt 0:05:29]} b6 {[%emt 0:00:24]} 5. Bd3 {[%emt 0:00:42]} Bxc3+ {[%emt 0:00:09]} 6. bxc3 {[%emt 0:00:30]} Bb7 {[%emt 0:00:16]} 7. f3 {[%emt 0:00:54]} d6 {[%emt 0:00:04]} 8. Ne2 {[%emt 0:00:59]} O-O {[%emt 0:00:04]} 9. O-O {[%emt 0:04:48]} Nbd7 {[%emt 0:00:39]} 10. e4 {[%emt 0:01:37]} e5 {[%emt 0:00:27]} 11. Ng3 {[%emt 0:03:01]} Re8 {[%emt 0:01:37]} 12. Bg5 {[%emt 0:10:06]} h6 {[%emt 0:00:05]} 13. Be3 {[%emt 0:01:36]} Nf8 {[%emt 0:00:47]} 14. Qd2 {[%emt 0:19:17]} Ng6 {[%emt 0:08:41]} 15. Rae1 {[%emt 0:11:27]} c5 {[%emt 0:01:35]} 16. d5 {[%emt 0:00:44]} Bc8 {[%emt 0:03:49]} 17. Re2 {[%emt 0:21:22]} Nd7 {[%emt 0:03:03]} 18. Nf5 {[%emt 0:02:00]} Ndf8 {[%emt 0:02:01]} 19. g4 {[%emt 0:07:40]} Bxf5 {[%emt 0:01:54]} 20. gxf5 {[%emt 0:00:10]} Nf4 {[%emt 0:00:51]} 21. Bxf4 {[%emt 0:00:08]} exf4 {[%emt 0:00:04]} 22. Qxf4 {[%emt 0:01:42]} Qg5+ {[%emt 0:06:44]} 23. Qxg5 {[%emt 0:00:16]} hxg5 {[%emt 0:00:06]} 24. Rg2 {[%emt 0:00:47]} f6 {[%emt 0:00:21]} 25. Bc2 {[%emt 0:03:51]} Re7 {[%emt 0:00:18]} 26. Ba4 {[%emt 0:02:15]} Nd7 {[%emt 0:00:11]} 27. Bxd7 {[%emt 0:00:01]} Rxd7 {[%emt 0:00:13]} 28. Rb1 {[%emt 0:01:29]} Rb7 {[%emt 0:00:12]} 29. Rgb2 {[%emt 0:00:26]} Rab8 {[%emt 0:03:12]} 30. Kg2 {[%emt 0:00:29]} Kh7 {[%emt 0:02:29]} 31. Kg3 {[%emt 0:00:48]} Kg8 {[%emt 0:02:52]} 32. a4 {[%emt 0:00:26]} Kf7 {[%emt 0:01:37]} 33. a5 {[%emt 0:00:02]} Ke7 {[%emt 0:00:25]} 34. h4 {[%emt 0:00:25]} gxh4+ {[%emt 0:00:06]} 35. Kxh4 {[%emt 0:00:46]} Kf7 {[%emt 0:00:32]} 36. Kg4 {[%emt 0:00:47]} Kg8 {[%emt 0:03:10]} 37. Kf4 {[%emt 0:00:18]} Kf7 {[%emt 0:00:18]} 38. Ke3 {[%emt 0:00:46]} Kg8 {[%emt 0:00:23]} 39. Kd3 {[%emt 0:00:28]} Kf7 {[%emt 0:00:00]} 40. Kd2 {[%emt 0:00:00]} Ke7 {[%emt 0:00:00]} 41. Ke3 {[%emt 0:00:00]} Kf7 {[%emt 0:00:00]} 42. Kd3 {[%emt 0:00:00]} Kf8 {[%emt 0:00:00]} 43. f4 {[%emt 0:00:00]} Ke7 {[%emt 0:00:00]} 44. e5 {[%emt 0:00:00]} fxe5 {[%emt 0:00:00]} 45. fxe5 {[%emt 0:00:00]} dxe5 {[%emt 0:00:00]} 46. Ke4 {[%emt 0:00:18]} Kd6 {[%emt 0:00:00]} 47. Rg1 {[%emt 0:02:28]} Rf7 {[%emt 0:00:00]} 48. axb6 {[%emt 0:01:26]} axb6 {[%emt 0:00:00]} 49. Rg6+ {[%emt 0:00:27]} Rf6 {[%emt 0:00:00]} 50. Rxg7 {[%emt 0:00:41]} Rh6 {[%emt 0:00:00]} 51. Rg6+ {[%emt 0:00:10]} Rxg6 {[%emt 0:00:00]} 52. fxg6 {[%emt 0:00:58]} Rh8 {[%emt 0:00:00]} 53. g7 {[%emt 0:00:19]} Rg8 {[%emt 0:00:00]} 54. Rxb6+ {[%emt 0:00:53] Kxd5+} 1-0